[Event "Charlotte IM-D May 2022"]
[Site "Charlotte"]
[Date "2022.05.09"]
[Round "9.3"]
[White "Nakada, Akira"]
[Black "Chen, Ryo"]
[Result "1/2-1/2"]
[ECO "E71"]
[WhiteElo "2324"]
[BlackElo "2265"]
[Annotator "TA"]
[PlyCount "90"]
[EventDate "2022.05.04"]
[EventType "tourn"]
[EventCountry "USA"]
[SourceTitle "playchess.com"]
[Source "ChessBase"]
[SourceQuality "1"]
[TimeControl "5400+30"]

{[%evp 9,90,37,38,36,34,32,54,33,52,43,85,0,0,0,0,0,0,0,24,24,58,14,70,79,75,72,70,84,66,96,72,92,79,40,31,0,0,0,0,0,0,0,0,0,0,0,0,0,0,0,0,0,0,0,0,0,0,0,0,0,0,0,0,0,0,0,0,0,0,0,0,0,0,0,0,0,0,0,0,0,0,0,0]} 1. c4 {[%emt 0:00:25]} Nf6 {[%emt 1:31:00]} 2. Nc3 {[%emt 0:00:10]} g6 {[%emt 0:00:00]} 3. e4 {[%emt 0:00:04]} d6 {[%emt 0:00:00]} 4. d4 {[%emt 0:00:04]} Bg7 {[%emt 0:00:00]} 5. h3 {[%emt 0:00:11]} Nbd7 {[%emt 0:00:00]} 6. Be3 {[%emt 0:00:16] E71: King's Indian: 4 e4 d6 5 h3.} e5 {[%emt 0:00:00]} 7. d5 {[%emt 0:01:06]} Nc5 {[%emt 0:03:00]} 8. f3 {[%emt 0:00:34] White is slightly better.} Nh5 {[%emt 0:00:00]} 9. Nge2 {[%emt 0:01:23] Prevents Ng3.} f5 {[%emt 0:00:00] [#]} 10. Qd2 {[%emt 0:04:33]} (10. exf5 $1 $16 gxf5 11. g4) 10... fxe4 $11 {[%emt 0:00:00]} 11. fxe4 {[%emt 0:00:28] [#]} ({Much worse is} 11. Bxc5 exf3 12. Bf2 fxe2 13. Bxe2 Nf4 $17) 11... O-O $146 {[%emt 0:00:00] White must now prevent ...Qh4+.} ({Predecessor:} 11... Qh4+ 12. g3 Nxg3 13. Bg5 Nxf1+ 14. Bxh4 Nxd2 15. Kxd2 O-O 16. b4 Na6 17. a3 Rf3 {0-1 (41) Nowak,L (2267)-Valenta,V (2147) Ruzomberok 2019}) 12. g3 {[%emt 0:11:30] Against Qh4} a5 {[%emt 0:00:00]} 13. O-O-O {[%emt 0:00:45]} Bd7 {[%emt 0:00:00]} 14. Kb1 {[%emt 0:04:14]} Na4 {[%emt 0:00:00]} 15. Rg1 {[%emt 0:04:26]} Qc8 {[%emt 0:00:00]} (15... Nb6 $11) 16. Nxa4 $1 $14 {[%emt 0:01:18]} Bxa4 {[%emt 0:00:00]} 17. Rc1 {[%emt 0:00:06]} Bd7 {[%emt 0:00:00]} 18. g4 {[%emt 0:04:55]} Nf4 {[%emt 0:00:00]} 19. Nxf4 {[%emt 0:01:42]} exf4 {[%emt 0:00:00]} 20. Bxf4 {[%emt 0:00:02]} Qe8 {[%emt 0:00:00]} 21. Bd3 {[%emt 0:00:56]} (21. Bg2 $5 {[%cal Rc4c5]}) 21... a4 {[%emt 0:00:00]} 22. a3 {[%emt 0:00:11]} b5 $1 {[%emt 0:00:00] The position is equal.} 23. cxb5 {[%emt 0:31:58]} (23. e5 {looks sharper.} dxe5 24. Bh6 Bxh6 25. Qxh6 b4 26. axb4 a3 27. Qd2) 23... Bxb5 {[%emt 0:00:00]} 24. Bxb5 {[%emt 0:11:15]} Qxb5 {[%emt 0:00:00]} 25. Rxc7 {[%emt 0:01:47]} Bxb2 $1 {[%emt 0:00:00]} 26. Qxb2 {[%emt 0:00:05] Chess con chili.} Qxb2+ {[%emt 0:00:00]} 27. Kxb2 {[%emt 0:00:02]} Rxf4 $11 {[%emt 0:00:04][%mdl 4096] Endgame KRR-KRR} 28. Rc4 {[%emt 0:03:23]} Rf2+ {[%emt 0:00:30]} 29. Kc3 {[%emt 0:01:35]} Rf3+ {[%emt 0:01:10]} 30. Kd4 {[%emt 0:00:40]} Rxa3 {[%emt 0:00:56]} 31. Rgc1 {[%emt 0:03:44]} Rxh3 {[%emt 0:03:31]} 32. Rc8+ {[%emt 0:00:01]} Rxc8 {[%emt 0:00:19]} 33. Rxc8+ {[%emt 0:00:02] KR-KR} Kf7 {[%emt 0:00:29]} 34. e5 {[%emt 0:00:07]} dxe5+ {[%emt 0:02:45]} 35. Kxe5 {[%emt 0:00:03]} Re3+ {[%emt 0:01:09]} 36. Kd6 {[%emt 0:00:04]} a3 {[%emt 0:02:01]} 37. g5 {[%emt 0:00:39]} a2 {[%emt 0:01:31]} 38. Ra8 {[%emt 0:00:10]} Re2 {[%emt 0:00:10]} 39. Ra3 {[%emt 0:02:09]} Ke8 {[%emt 0:00:34]} 40. Ra7 {[%emt 0:00:13]} Kf8 {[%emt 0:00:23]} 41. Ra8+ {[%emt 0:02:15]} Kf7 {[%emt 0:00:05]} 42. Kd7 {[%emt 0:11:59]} Re7+ {[%emt 0:00:56]} 43. Kc6 {[%emt 0:00:00]} Re2 {[%emt 0:00:09]} 44. Ra7+ {[%emt 0:00:00]} Ke8 {[%emt 0:00:32]} 45. Ra8+ {[%emt 0:00:00]} Ke7 {[%emt 0:00:12] Weighted Error Value: White=0.06 (flawless) /Black=0.07 (flawless)} 1/2-1/2

[Event "Charlotte IM-D May 2022"]
[Site "Charlotte"]
[Date "2022.05.08"]
[Round "9.4"]
[White "Woodward, Andy"]
[Black "Wang, Eigen"]
[Result "1-0"]
[ECO "E66"]
[WhiteElo "2354"]
[BlackElo "2269"]
[Annotator "TA"]
[PlyCount "97"]
[EventDate "2022.05.04"]
[EventType "tourn"]
[EventCountry "USA"]
[SourceTitle "playchess.com"]
[Source "ChessBase"]
[SourceQuality "1"]
[TimeControl "5400+30"]

{[%evp 18,97,21,18,12,18,8,8,30,26,9,-33,-47,-44,-46,-43,-14,-37,-25,-37,0,0,0,0,0,0,118,127,159,143,200,226,212,179,169,165,406,379,425,419,405,406,492,479,470,442,395,375,366,372,383,382,381,381,1005,541,601,589,598,598,564,416,722,579,1002,993,1071,941,1162,573,877,916,951,777,708,670,1072,1064,791,582,548,493]} 1. d4 {[%emt 0:00:02]} Nf6 {[%emt 0:00:05]} 2. c4 {[%emt 0:00:11]} g6 {[%emt 0:00:07]} 3. g3 {[%emt 0:00:07]} Bg7 {[%emt 0:00:05]} 4. Bg2 {[%emt 0:00:05]} O-O {[%emt 0:00:14]} 5. Nc3 {[%emt 0:00:04]} d6 {[%emt 0:00:11]} 6. Nf3 {[%emt 0:00:07]} c5 {[%emt 0:00:06]} 7. O-O {[%emt 0:00:07]} Nc6 {[%emt 0:00:14]} 8. d5 {[%emt 0:00:06]} Na5 {[%emt 0:00:06]} 9. Nd2 {[%emt 0:00:05]} e6 {[%emt 0:00:16]} 10. Rb1 {[%emt 0:00:07]} Re8 {[%emt 0:00:59] E66: King's Indian: Fianchetto: 6...c5 7 0-0 Nc6 8 d5.} 11. b3 {[%emt 0:00:35]} exd5 {[%emt 0:01:39]} 12. cxd5 {[%emt 0:00:14]} Bf5 {[%emt 0:00:48] The position is equal.} 13. e4 {[%emt 0:00:09]} Bd7 {[%emt 0:00:07] [#]} 14. b4 $146 {[%emt 0:02:17]} ({Predecessor:} 14. Qc2 b5 15. Bb2 b4 16. Nd1 Bb5 17. Nc4 Nxc4 18. bxc4 Bd7 19. f4 a5 20. Nf2 {½-½ (40) Fischer,W (2449)-Packroff,H (2251) ICCF email 2016}) 14... cxb4 {[%emt 0:02:59]} 15. Rxb4 {[%emt 0:00:02]} Ng4 {[%emt 0:02:16]} 16. Bb2 {[%emt 0:03:35]} Qc7 {[%emt 0:07:19]} 17. Qa1 {[%emt 0:05:06]} Ne5 {[%emt 0:09:30]} 18. Ne2 {[%emt 0:01:30]} Qc2 {[%emt 0:09:54]} (18... Bh6 $5 {[%cal Rh6d2]} 19. Nf4 Rac8 $11) 19. Bc3 {[%emt 0:06:20]} Qd3 {[%emt 0:08:16]} 20. Nd4 {[%emt 0:06:13]} Rac8 {[%emt 0:15:30]} 21. Rc1 {[%emt 0:02:58]} Rxc3 {[%emt 0:01:30]} 22. Qxc3 $16 {[%emt 0:03:18] Bf1 is the strong threat. Black is now going downhill.} Rc8 {[%emt 0:01:19]} 23. Qxd3 {[%emt 0:01:14]} Rxc1+ {[%emt 0:00:17] [#]} (23... Nxd3 $16 24. Rxc8+ Bxc8) 24. Qf1 $1 $18 {[%emt 0:00:06]} Nd3 {[%emt 0:00:34]} 25. Rb1 {[%emt 0:04:51]} Rxf1+ {[%emt 0:00:44]} 26. Bxf1 {[%emt 0:00:02] Hoping for Nc6.} Nxf2 $2 {[%emt 0:01:24] [#]} (26... Nc5) 27. Nc6 $1 {[%emt 0:01:54][%mdl 512]} bxc6 {[%emt 0:04:02]} (27... Nxe4 28. Nxe4) 28. Rb8+ {[%emt 0:00:21]} ({Less strong is} 28. Kxf2 Bd4+ 29. Kf3 Bb6 $16) 28... Bf8 {[%emt 0:00:02]} 29. Kxf2 {[%emt 0:00:10]} Kg7 {[%emt 0:04:12]} 30. Ra8 {[%emt 0:00:37]} Nb7 {[%emt 0:00:49]} 31. Rxa7 {[%emt 0:00:07]} Nc5 {[%emt 0:00:06] [#]} 32. Rxd7 $1 {[%emt 0:00:09][%mdl 512]} Nxd7 {[%emt 0:00:13]} 33. dxc6 {[%emt 0:00:05][%mdl 4096] Endgame KBN-KBN} Nb6 {[%emt 0:00:16]} 34. c7 {[%emt 0:00:06] And now Ba6 would win.} d5 {[%emt 0:00:47]} 35. Ba6 {[%emt 1:05:00] Black must now prevent exd5.} ({Weaker is} 35. exd5 Bd6 $16) 35... Bb4 $2 {[%emt 0:00:43]} (35... Bd6 36. c8=Q Nxc8 37. Bxc8 dxe4 38. Nxe4 Bb4) 36. Ke2 {[%emt 0:00:00] Strongly threatening exd5.} Bd6 {[%emt 0:01:53]} 37. c8=Q {[%emt 0:00:00]} Nxc8 {[%emt 0:00:05]} 38. Bxc8 {[%emt 0:00:00]} dxe4 {[%emt 0:00:31]} 39. Nxe4 {[%emt 0:00:00]} Bc7 {[%emt 0:00:36]} (39... Ba3 $142 40. Nd2 Kf6) 40. a4 {[%emt 0:00:00][%cal Ba2a4,Ba4a5,Ba5a6][%mdl 32] White is clearly winning.} f5 {[%emt 0:00:13]} 41. Nc5 {[%emt 0:00:00] aiming for Ne6+.} Kf6 {[%emt 0:00:08]} 42. Nb3 {[%emt 0:00:00]} Ke5 {[%emt 0:30:25]} 43. a5 {[%emt 0:00:00]} Kd5 {[%emt 0:00:00]} 44. a6 {[%emt 0:00:00] a7 would kill now.} Bb6 {[%emt 0:00:00]} 45. Bb7+ {[%emt 0:00:00]} Kd6 {[%emt 0:00:00]} 46. Kf3 {[%emt 0:00:00]} Kc7 {[%emt 0:00:00]} 47. Bd5 {[%emt 0:00:00]} h6 {[%emt 0:00:00]} 48. Bf7 {[%emt 0:00:00]} g5 {[%emt 0:00:00]} 49. Be6 {[%emt 0:00:00] Weighted Error Value: White=0.30/Black=0.33} 1-0